Cogmind - Beta 14 @@@ ROGUE MODE // 2025.03.04 @ 19:23:23 Player: Scringis Result: Destroyed by Z-Imprinter with Zionite Laser-M Performance ------------- Evolutions (3) 1500 Regions Visited (8) 1600 Robots Destroyed (95) 475 Value Destroyed (2837) 2837 Prototype IDs (10) 200 Alien Tech Used (0) 0 Bonus (734) 734 TOTAL SCORE: 7346 Bonus ------- High Alert Combat Kills 41 Follower Combat Kills 93 Met Imprinter 300 Was Imprinted 300 Cogmind --------- Core Integrity 0/700 Matter 255/300 Energy 95/100 System Corruption 0% Temperature Cool (18) Movement Core (50) Location -7/Deep Caves Parts ------- > --- POWER (2) -------- (None) > --- PROPULSION (3) --- (None) > --- UTILITY (3) ------ (None) > --- WEAPON (5) ------- CR-A16's Pointy Stick > --- INVENTORY (5) ---- Improved Grenade Launcher Plasma Cutter Peak State ------------ > --- POWER ------------ Neutrino Core Neutrino Core > --- PROPULSION ------- Light Treads Light Treads > --- UTILITY ---------- Improved Cooling System Advanced Weight Redist. System Hacking Drone Bay > --- WEAPON ----------- Advanced Assault Cannon Advanced Assault Cannon Advanced Assault Cannon Improved Grenade Launcher CR-A16's Pointy Stick > --- INVENTORY -------- Corruption Screen Plasma Cutter [Rating: 49] Favorites ----------- Power Heavy Ion Engine Engine Heavy Ion Engine Power Core Neutrino Core Propulsion Light Treads Treads Light Treads Hover Unit Aerolev Unit Flight Unit Xenon Bombardment Thruster Utility Small Storage Unit Device Improved Cooling System Storage Small Storage Unit Protection Improved Medium Armor Plating Weapon Advanced Assault Cannon Energy Gun Improved Medium Laser Energy Cannon Cooled Particle Cannon Ballistic Gun Heavy Assault Rifle Ballistic Cannon Advanced Assault Cannon Launcher Improved Grenade Launcher Special Weapon Plasma Cutter Piercing Weapon CR-A16's Pointy Stick Build | -11 -10 -9 -9 -9 -7 -7 -7 -7 ------- Run | Yrd Mat Mat Sto Rec Fac Low Zio Dee Slots Evolved 6 | . . 2 . . 4 . . . Power 1 | . . . . . 1 . . . Propulsion 1 | . . . . . 1 . . . Utility 1 | . . . . . 1 . . . Weapon 3 | . . 2 . . 1 . . . Parts Attached 90 | 6 1 12 23 5 32 3 6 2 Power 15 | 1 1 1 3 1 5 2 . 1 Engine 7 | 1 1 1 3 1 . . . . Core 8 | . . . . . 5 2 . 1 Reactor . | . . . . . . . . . Propulsion 21 | 2 . 7 3 1 5 . 3 . Treads 15 | 2 . 5 3 1 2 . 2 . Leg . | . . . . . . . . . Wheel . | . . . . . . . . . Hover 2 | . . 2 . . . . . . Flight 4 | . . . . . 3 . 1 . Utility 11 | 1 . . 1 1 7 . 1 . Device 8 | . . . 1 1 5 . 1 . Storage 2 | 1 . . . . 1 . . . Processor . | . . . . . . . . . Hackware . | . . . . . . . . . Protection 1 | . . . . . 1 . . . Artifact . | . . . . . . . . . Weapon 43 | 2 . 4 16 2 15 1 2 1 Energy Gun 5 | . . 1 4 . . . . . Energy Cannon 4 | . . . 2 . 2 . . . Ballistic Gun 19 | 2 . 3 5 2 7 . . . Ballistic Cannon 7 | . . . 3 . 3 . . 1 Launcher 3 | . . . 1 . 1 1 . . Special Weapon 4 | . . . 1 . 2 . 1 . Impact Weapon . | . . . . . . . . . Slashing Weapon . | . . . . . . . . . Piercing Weapon 1 | . . . . . . . 1 . Special Melee Weapon . | . . . . . . . . . Unidentified Prototypes 10 | . . 2 4 . 3 . 1 . Parts Lost 33 | . 5 . 6 1 12 . 1 8 Power 9 | . 2 . 1 1 3 . . 2 Propulsion 10 | . 2 . 3 . 2 . 1 2 Utility 6 | . . . . . 3 . . 3 Weapon 8 | . 1 . 2 . 4 . . 1 Highest Loss Streak 6 | . 3 . 1 1 4 . 1 6 To Critical Strikes 2 | . . . 2 . . . . . Average Slot Usage (%) 75 | . 75 74 80 91 76 81 63 44 Engine 5 | . 12 10 8 10 5 . . . Core 5 | . . . . . 6 15 10 4 Treads 12 | . 21 15 19 14 10 15 6 6 Device 11 | . . . 8 11 8 15 21 15 Storage 6 | . 14 11 11 11 5 . . . Protection 1 | . . . . . 4 . . . Energy Gun 2 | . . 4 8 7 . . . . Energy Cannon 3 | . . . 1 . 6 7 . . Ballistic Gun 16 | . 26 27 18 36 21 . . . Ballistic Cannon 5 | . . . 3 . 2 23 9 2 Piercing Weapon 1 | . . . . . . . 6 7 Peak Build Rating 49 | 6 6 14 19 17 41 41 49 34 Average Rating 25 | 4 5 12 15 15 30 37 37 28 On Entrance 18 | . 6 2 14 15 16 35 41 36 Naked Turns . | . . . . . . . . . Heaviest Build 61 | 10 12 20 28 24 48 61 61 26 Greatest Support 72 | 40 40 40 46 43 72 49 49 31 Greatest Overweight (x) 8 | . 1 4 1 1 3 1 1 8 Average Overweight (x) . | . . . . . . . . . Largest Inventory Capacity 8 | 8 8 8 8 8 8 5 5 5 Average Capacity 6 | 6 8 8 8 8 7 5 5 5 Most Carried 8 | 5 2 4 6 6 8 3 5 4 Average Carried 3 | 1 1 2 4 4 4 2 3 2 Final Capacity 8 | 8 8 8 8 8 5 5 5 5 Final Carried 5 | 2 1 2 5 3 3 2 3 2 Class Distribution -------------------- 31% | Mutant 22% | Scavenger-Gunner 22% | Gunner 20% | Scavenger-Tank 3% | Commander-Gunner Dominant Class ---------------- Mutant | -10/Materials Mutant | -9/Materials Mutant | -9/Storage Scavenger-Gunner | -9/Recycling Scavenger-Tank | -7/Factory Gunner | -7/Lower Caves Mutant | -7/Zion Mutant | -7/Deep Caves Resources | -11 -10 -9 -9 -9 -7 -7 -7 -7 ----------- Run | Yrd Mat Mat Sto Rec Fac Low Zio Dee Matter Collected 2395 | 150 181 78 676 168 714 293 89 46 Remotely . | . . . . . . . . . Salvage Created 3324 | . 405 133 1125 163 1369 83 . 46 Parts 195 | . 22 13 68 12 76 4 . . Haulers Intercepted 7 | . . . 5 . 2 . . . Recyclers Shooed 1 | . . . . . 1 . . . Parts Field Recycled . | . . . . . . . . . Retrieved Matter . | . . . . . . . . . Parts Self-Destructed 4 | . . . . . . 4 . . Prevented . | . . . . . . . . . Kills | -11 -10 -9 -9 -9 -7 -7 -7 -7 ------- Run | Yrd Mat Mat Sto Rec Fac Low Zio Dee Combat Hostiles Destroyed 77 | . 13 5 24 3 25 4 . 3 Melee 3 | . . . . . . . . 3 Guns 51 | . 13 5 19 3 11 . . . Cannons 14 | . . . 2 . 10 2 . . AOE 9 | . . . 3 . 4 2 . . Classes Destroyed 12 | . 2 2 2 . 5 . . 1 Worker 3 | . . . 2 . 1 . . . Builder 1 | . . . . . 1 . . . Tunneler 2 | . . . . . 2 . . . Hauler 7 | . . . 5 . 2 . . . Recycler 3 | . . . . . 3 . . . Watcher 5 | . . 1 2 . 2 . . . Swarmer 28 | . 6 4 8 . 7 3 . . Grunt 28 | . 7 . 11 . 10 . . . Sentry 12 | . . 1 5 3 2 1 . . Hunter 2 | . . . . . 2 . . . Programmer 4 | . . . . . 4 . . . Assembled 3 | . . . . . . . . 3 Best Kill Streak 6 | . 5 5 5 2 6 3 . 2 Combat Bots Only 5 | . 5 3 4 2 5 3 . 2 Max Kills in Single Turn 3 | . 2 1 3 1 3 2 . 1 Gunslinging 1 | . 1 . . . . . . . Exploded 2 | . . . 2 . 2 2 . . Melee 1 | . . . . . . . . 1 Uniques/NPCs Destroyed . | . . . . . . . . . Combat | -11 -10 -9 -9 -9 -7 -7 -7 -7 -------- Run | Yrd Mat Mat Sto Rec Fac Low Zio Dee Hostile Shots Fired 489 | . 89 34 136 10 114 33 . 73 Missed 132 | . 25 18 22 . 35 12 . 20 Damage Taken 5329 | . 671 150 1371 145 1556 225 30 1181 Core 1105 | . 129 29 200 32 186 5 12 512 Absorbed by Shields . | . . . . . . . . . Core Remaining (%) 60 | 100 48 . . 34 . . . . Volleys Fired 215 | . 47 15 77 6 64 6 . . Largest 5 | . 2 4 4 4 5 5 . . Hottest 210 | . 40 122 157 89 174 210 . . Shots Fired 608 | . 86 48 202 10 235 26 1 . Gun 451 | . 86 48 164 10 143 . . . Cannon 149 | . . . 34 . 90 25 . . Launcher 8 | . . . 4 . 2 1 1 . Special . | . . . . . . . . . Kinetic 451 | . 86 39 128 10 169 19 . . Thermal 149 | . . 9 70 . 64 6 . . Explosive 8 | . . . 4 . 2 1 1 . Electromagnetic . | . . . . . . . . . Robot Hit Streak 16 | . 8 5 14 10 16 5 . . Robot Miss Streak 8 | . 6 3 8 . 5 2 . . Penetration Max 1 | . . . . . 1 . . . Secondary Targets 5 | . 3 . 2 . . . . . Max Gunslinging Chain 1 | . 1 . 1 . . . . . Shots Hit Robots 315 | . 52 22 101 8 114 11 . 7 Core Hits 156 | . 24 8 42 6 67 5 . 4 Critical Kills 2 | . . . . 1 1 . . . Critical Parts Destroyed 2 | . 1 . . . 1 . . . Critical Strikes 11 | . 1 . 3 1 6 . . . Burn 2 | . . . 2 . . . . . Destroy 4 | . 1 . . 1 2 . . . Blast 5 | . . . 1 . 4 . . . Melee Attacks 25 | . . . . . . . 6 19 Impact . | . . . . . . . . . Slashing . | . . . . . . . . . Piercing 25 | . . . . . . . 6 19 Sneak Attacks . | . . . . . . . . . Combat Hostiles . | . . . . . . . . . Follow-up Attacks . | . . . . . . . . . Damage Inflicted 6380 | . 493 261 1838 119 3050 352 . 267 Guns 3563 | . 493 258 1431 108 1273 . . . Cannons 1711 | . . . 267 . 1181 263 . . Explosions 788 | . . . 121 . 578 89 . . Melee 267 | . . . . . . . . 267 Ramming 51 | . . 3 19 11 18 . . . Kinetic 3553 | . 493 185 1004 108 1580 183 . . Thermal 2070 | . . 73 694 . 1223 80 . . Explosive 265 | . . . 121 . 55 89 . . Electromagnetic 174 | . . . . . 174 . . . Impact . | . . . . . . . . . Slashing . | . . . . . . . . . Piercing 267 | . . . . . . . . 267 Highest Corruption 2 | . . . 2 2 2 2 2 . Average Corruption 1 | . . . 2 2 1 2 2 . Corruption Purged . | . . . . . . . . . Corruption Blocked . | . . . . . . . . . Effects 49 | . . . 14 13 8 9 5 . Message Errors 14 | . . . 3 6 2 3 . . Matter Fused 13 | . . . . 5 3 4 1 . Heat Flow Errors 5 | . . . 4 . . . 1 . Energy Discharges 3 | . . . 2 1 . . . . Parts Fused 1 | . . . . . 1 . . . Data Loss (minor) 5 | . . . 1 . 2 1 1 . Data Loss (major) 1 | . . . 1 . . . . . Misfires 3 | . . . . 1 . 1 1 . Alerts 4 | . . . 3 . . . 1 . Overload Shots . | . . . . . . . . . Overflow Damage 193 | . . . . . 164 5 12 12 Projectiles 5 | . . . . . . 5 . . Explosions 176 | . . . . . 164 . 12 . Melee 12 | . . . . . . . . 12 Knockbacks 9 | . . . 4 . 3 2 . . Impact . | . . . . . . . . . Kinetic 9 | . . . 4 . 3 2 . . Secondary . | . . . . . . . . . Self-Inflicted Damage 380 | . . . 27 . 323 . 30 . Shots 11 | . . . 2 . 8 . 1 . Rammed 13 | . . 1 4 2 6 . . . Targets Rammed 14 | . . 1 4 2 7 . . . Kicked . | . . . . . . . . . Crushed 1 | . . . . . 1 . . . Highest Temperature 519 | . 47 162 519 . 81 108 242 3 Average Temperature 89 | . 12 61 163 . 14 48 130 3 Received Heat Transfer 1410 | . 324 27 618 45 153 36 . 207 Effects 16 | . . . 15 . . . 1 . Shutdowns 3 | . . . 3 . . . . . Energy Bleed 4 | . . . 3 . . . 1 . Interference 4 | . . . 4 . . . . . Matter Decay 1 | . . . 1 . . . . . Short Circuit 2 | . . . 2 . . . . . Damage (minor) 1 | . . . 1 . . . . . Damage (major) 1 | . . . 1 . . . . . Siege Activations . | . . . . . . . . . Robots Corrupted . | . . . . . . . . . Combat Hostiles . | . . . . . . . . . Parts Fried . | . . . . . . . . . Impact Corruptions . | . . . . . . . . . Robots Melted . | . . . . . . . . . Combat Hostiles . | . . . . . . . . . Parts Melted 5 | . . . 3 . 2 . . . Heat Transferred 3271 | . . 185 1628 . 1347 111 . . Parts Sabotaged . | . . . . . . . . . Parts Stolen . | . . . . . . . . . Parts Stripped . | . . . . . . . . . Power Chain Reactions 1 | . . . . . 1 . . . Alert | -11 -10 -9 -9 -9 -7 -7 -7 -7 ------- Run | Yrd Mat Mat Sto Rec Fac Low Zio Dee Peak Influence 520 | . 345 363 520 164 447 . . . Initial 164 | . . 145 152 164 25 . . . Average 185 | . 190 231 293 113 147 . . . Maximum Alert Level 2 | . 1 1 2 . 2 . . . Low Security (%) 59 | 100 34 28 29 100 69 . . . Level 1 33 | . 65 71 46 . 28 . . . Level 2 7 | . . . 24 . 2 . . . Level 3 . | . . . . . . . . . Level 4 . | . . . . . . . . . Level 5 . | . . . . . . . . . High Security . | . . . . . . . . . Max Security . | . . . . . . . . . Squads Dispatched 14 | . 3 . 5 . 6 . . . Investigation 2 | . 1 . 1 . . . . . Extermination 2 | . . . . . 2 . . . Reinforcement 7 | . 2 . 1 . 4 . . . Assault . | . . . . . . . . . Garrison 3 | . . . 3 . . . . . Intercept . | . . . . . . . . . Searches Triggered . | . . . . . . . . . Construction Impeded 1 | . . . 1 . . . . . Haulers Reinforced 1 | . . . . . 1 . . . Active Scanning Responses . | . . . . . . . . . Cargo Convoy Interrupts . | . . . . . . . . . Stealth | -11 -10 -9 -9 -9 -7 -7 -7 -7 --------- Run | Yrd Mat Mat Sto Rec Fac Low Zio Dee Distress Signals 8 | . 2 1 3 . 2 . . . Communications Jammed . | . . . . . . . . . Distress Signals . | . . . . . . . . . Times Spotted 103 | . 18 11 28 2 33 5 . 6 Peak Tracking Total 6 | . 5 5 6 1 6 3 . 3 Tactical Retreats 6 | . 2 2 1 . . 1 . . Traps | -11 -10 -9 -9 -9 -7 -7 -7 -7 ------- Run | Yrd Mat Mat Sto Rec Fac Low Zio Dee Traps Triggered 5 | . 1 2 1 . 1 . . . Indirectly . | . . . . . . . . . Trap Hack Attempts . | . . . . . . . . . Triggered . | . . . . . . . . . Disarmed . | . . . . . . . . . Reprogrammed . | . . . . . . . . . Reused . | . . . . . . . . . Traps Extracted . | . . . . . . . . . Installed . | . . . . . . . . . Triggered . | . . . . . . . . . Machines | -11 -10 -9 -9 -9 -7 -7 -7 -7 ---------- Run | Yrd Mat Mat Sto Rec Fac Low Zio Dee Machines Disabled 23 | . . . 5 . 15 . 3 . Max in Single Turn 6 | . . . 1 . 6 . 1 . Garrison Access 1 | . . . . . 1 . . . Machines Repaired . | . . . . . . . . . Machines Dismantled 6 | . . . 1 . 2 . 3 . Machines Sabotaged . | . . . . . . . . . Overloaded Fab Kills . | . . . . . . . . . Hacking | -11 -10 -9 -9 -9 -7 -7 -7 -7 --------- Run | Yrd Mat Mat Sto Rec Fac Low Zio Dee Machines Accessed 5 | . . . 2 1 2 . . . Terminals 2 | . . . 1 . 1 . . . Fabricators . | . . . . . . . . . Repair Stations . | . . . . . . . . . Recycling Units 1 | . . . . 1 . . . . Scanalyzers . | . . . . . . . . . Garrison Access 2 | . . . 1 . 1 . . . Total Hacks 8 | . . . 3 1 4 . . . Successful 4 | . . . 1 1 2 . . . Failed 4 | . . . 2 . 2 . . . Catastrophic . | . . . . . . . . . Database Lockouts . | . . . . . . . . . Manual 1 | . . . . . . . 1 . Terminals 2 | . . . 1 . 1 . . . Fabricators . | . . . . . . . . . Repair Stations . | . . . . . . . . . Recycling Units 1 | . . . . 1 . . . . Scanalyzers . | . . . . . . . . . Garrison Access 5 | . . . 2 . 3 . . . Terminal Hacks 2 | . . . 1 . 1 . . . Open Door 1 | . . . 1 . . . . . Open DSF 1 | . . . . . 1 . . . Fabricator Hacks . | . . . . . . . . . Repair Station Hacks . | . . . . . . . . . Recycling Unit Hacks 1 | . . . . 1 . . . . Report Inventory 1 | . . . . 1 . . . . Scanalyzer . | . . . . . . . . . Garrison Access Hacks 1 | . . . . . 1 . . . Seal Access 1 | . . . . . 1 . . . Unauthorized Hacks . | . . . . . . . . . Terminals . | . . . . . . . . . Fabricators . | . . . . . . . . . Repair Stations . | . . . . . . . . . Recycling Units . | . . . . . . . . . Scanalyzers . | . . . . . . . . . Garrison Access . | . . . . . . . . . Data Cores Recovered . | . . . . . . . . . Used . | . . . . . . . . . Hacking Detections 2 | . . . 1 . 1 . . . Full Trace Events 1 | . . . 1 . . . . . Feedback Events . | . . . . . . . . . Feedback Blocked . | . . . . . . . . . Robot Schematics Acquired 4 | . . . . . . . 4 . Robots Built . | . . . . . . . . . Authchips . | . . . . . . . . . Time . | . . . . . . . . . Total Robot Build Rating . | . . . . . . . . . Part Schematics Acquired 14 | . . . . . . . 14 . Parts Built . | . . . . . . . . . Authchips . | . . . . . . . . . Time . | . . . . . . . . . Total Part Build Rating . | . . . . . . . . . Parts Repaired . | . . . . . . . . . Time . | . . . . . . . . . Parts Recycled . | . . . . . . . . . Recycled Matter . | . . . . . . . . . Retrieved Matter . | . . . . . . . . . Retrieved Components . | . . . . . . . . . Parts Scanalyzed . | . . . . . . . . . Part Schematics Acquired . | . . . . . . . . . Parts Damaged . | . . . . . . . . . Bothacking | -11 -10 -9 -9 -9 -7 -7 -7 -7 ------------ Run | Yrd Mat Mat Sto Rec Fac Low Zio Dee Used RIF Installer . | . . . . . . . . . Robots Hacked . | . . . . . . . . . Non-combat . | . . . . . . . . . Combat . | . . . . . . . . . Robot Hacks Applied . | . . . . . . . . . Relay Couplers Released 4 | . . . . . 4 . . . Programmers 4 | . . . . . 4 . . . Fabnet Peak Effective % . | . . . . . . . . . Robots Rewired . | . . . . . . . . . Allies Hacked . | . . . . . . . . . Hacks Repelled . | . . . . . . . . . Allies | -11 -10 -9 -9 -9 -7 -7 -7 -7 -------- Run | Yrd Mat Mat Sto Rec Fac Low Zio Dee Total Allies 14 | . . . 10 . . . 4 . Largest Group 10 | . . . 10 . . . 4 . Highest-Rated Group 150 | . . . 88 . . . 150 . Highest-Rated Ally 39 | . . . 16 . . . 39 . Total Orders . | . . . . . . . . . Ally Attacks 50 | . . . 50 . . . . . Total Damage 501 | . . . 501 . . . . . Kills 3 | . . . 3 . . . . . Allies Corrupted . | . . . . . . . . . Allies Melted . | . . . . . . . . . Intel | -11 -10 -9 -9 -9 -7 -7 -7 -7 ------- Run | Yrd Mat Mat Sto Rec Fac Low Zio Dee Robot Analysis Total . | . . . . . . . . . Derelict Logs Recovered 2 | . . . . . . 1 1 . Drone Launches . | . . . . . . . . . Drone Recoveries . | . . . . . . . . . Exploration | -11 -10 -9 -9 -9 -7 -7 -7 -7 ------------- Run | Yrd Mat Mat Sto Rec Fac Low Zio Dee Turns Passed 6719 | 65 307 209 1265 664 2247 640 1118 204 Spaces Moved 3000 | 43 110 107 480 308 893 369 608 82 Core 49 | 15 17 6 . . . . . 11 Treads 2651 | 28 93 54 480 308 892 369 356 71 Legs . | . . . . . . . . . Wheels . | . . . . . . . . . Hover 47 | . . 47 . . . . . . Flight 253 | . . . . . 1 . 252 . Fastest Speed 46 | 50 100 46 160 160 160 160 120 100 Average Speed 180 | 121 150 109 170 207 208 164 165 177 Slowest Speed 450 | 160 160 250 240 240 320 240 240 450 Overloaded Moves . | . . . . . . . . . Propulsion Burnouts . | . . . . . . . . . Robots Hopped . | . . . . . . . . . Cave-ins Triggered . | . . . . . . . . . Exploration Rate (%) 39 | 3 32 13 74 67 28 50 72 19 Regions Visited 8 Branch Regions 5 Pre-discovered Areas 2 | . . . 1 . . . 1 . Known Exits Taken . | . . . . . . . . . Unknown Exits Taken 8 | 1 1 1 1 1 1 1 1 . Scrap Searched 3 | . . . . . . 1 2 . Spaces Dug . | . . . . . . . . . Terrain Destroyed 95 | . . . 32 . 30 18 15 . Melee . | . . . . . . . . . Projectile 24 | . . . 6 . 13 5 . . AOE 71 | . . . 26 . 17 13 15 . Terrain Rammed . | . . . . . . . . . Walls Destroyed . | . . . . . . . . . Machines Disabled . | . . . . . . . . . Actions | -11 -10 -9 -9 -9 -7 -7 -7 -7 --------- Run | Yrd Mat Mat Sto Rec Fac Low Zio Dee Total 3744 | 56 182 169 746 327 1113 386 660 105 Wait 221 | . 25 18 121 . 51 5 . 1 Move 2992 | 42 109 106 479 307 892 368 607 82 Hop . | . . . . . . . . . Pick Up 84 | 8 . 14 20 2 33 2 5 . Fast Attach . | . . . . . . . . . Attach 67 | 6 1 11 13 4 24 1 5 2 Detach 10 | . . . . 1 5 . 3 1 Swap 23 | . . 1 10 1 8 2 1 . Drop 42 | . . 3 11 2 18 2 6 . Fire 215 | . 47 15 77 6 64 6 . . Melee 25 | . . . . . . . 6 19 Ram . | . . . . . . . . . Kick . | . . . . . . . . . Crush 14 | . . 1 4 2 7 . . . Escape Stasis . | . . . . . . . . . Rewire 4 | . . . 2 2 . . . . Trap . | . . . . . . . . . Miscellaneous 47 | . . . 9 . 11 . 27 . Route ------- -11/Scrapyard -10/Materials -9/Materials -9/Storage -9/Recycling -7/Factory (discovered 2 exits: [*Fac] / [*Low]) -7/Lower Caves -7/Zion (discovered 2 exits: [*Dee] / [*Pro]) -7/Deep Caves History --------- Turn | Location | Event 7 | -11/Scrapyard | Discovered new exit (range 15) 66 | -11/Scrapyard | Entered Materials 307 | -10/Materials | Build established: Mutant 312 | -10/Materials | Discovered new exit (range 15) 344 | -10/Materials | Core integrity fell below 50% 373 | -10/Materials | Entered another Materials area 373 | -9/Materials | Evolved 2 slots: Weapon x2 382 | -9/Materials | Lost 3 parts (1p1n1w) 406 | -9/Materials | Discovered new exit (range 10) 582 | -9/Materials | Entered Storage 602 | -9/Storage | Assisted by bots powering up and referring to "LRC-V3" 865 | -9/Storage | Lost 9 allies 1212 | -9/Storage | Garrison activated, responded to threat 1521 | -9/Storage | Learned location of Armory (-3) 1541 | -9/Storage | Core integrity fell below 50% 1841 | -9/Storage | Discovered new exit (range 3) 1847 | -9/Storage | Entered Recycling 1848 | -9/Recycling | Met a Zionite searching for Scraptown 1871 | -9/Recycling | Build established: Scavenger-Gunner 2477 | -9/Recycling | Discovered new exit (range 16) 2511 | -9/Recycling | Entered Factory 2511 | -7/Factory | Evolved 4 slots: Power x1, Propulsion x1, Utility x1, Weapon x1 3107 | -7/Factory | Build established: Scavenger-Tank 4187 | -7/Factory | Lost 4 parts (2u2w) 4453 | -7/Factory | Lost 4 parts (2p1u1w) 4459 | -7/Factory | Discovered new exit (range 15) 4613 | -7/Factory | Discovered new exit (range 15) 4753 | -7/Factory | Build established: Gunner 4758 | -7/Factory | Entered Lower Caves 5026 | -7/Lower Caves | Learned location of 1 exit from Factory 5068 | -7/Lower Caves | Attracted the attention of an 0b10 checkpoint 5312 | -7/Lower Caves | A Derelict revealed a hidden shortcut to a safe place 5398 | -7/Lower Caves | Entered Zion 5434 | -7/Zion | Found CR-A16's Pointy Stick 5540 | -7/Zion | Given the Hacking Drone Bay 5540 | -7/Zion | Found Prototype Device 5541 | -7/Zion | Identified Hacking Drone Bay 5564 | -7/Zion | Discovered new exit (range 11) 5759 | -7/Zion | System corruption cleaned by Quarantine Array 5843 | -7/Zion | Learned Factory terminal intel 6184 | -7/Zion | Build established: Mutant 6277 | -7/Zion | Met Imprinter 6304 | -7/Zion | Imprinted 6306 | -7/Zion | Declared Zion's savior 6509 | -7/Zion | Discovered new exit (range 5) 6512 | -7/Zion | Saw the warning signs outside the Deep Caves entrance 6516 | -7/Zion | Entered Deep Caves 6516 | -7/Deep Caves | Accompanied by 4 allies 6697 | -7/Deep Caves | Attacked by Z-Imprinter 6708 | -7/Deep Caves | Core integrity fell below 50% 6718 | -7/Deep Caves | Core integrity fell below 20% 6720 | -7/Deep Caves | Destroyed by Z-Imprinter with Zionite Laser-M Last Messages --------------- 06520_ YT-2G1(M) slips into the shadows. 06537_ as-49785 destroyed. 06540_ Acquired 16 matter. 06548_ Neutrino Core destroyed. 06555_ Adv. Weight Redist. System destroyed. 06568_ as-42782 destroyed. 06586_ as-74825 destroyed. 06589_ Acquired 11 matter. 06610_ Acquired 19 matter. 06689_ NEW_ZION: Z-Facility proximity alert. 06697_ Adv. Treads destroyed. 06697_ Hacking Drone Bay destroyed. Z-Imprinter: GET AWAY FROM HERE! I've worked too hard for our future just to have you ruin everything! 06700_ Neutrino Core destroyed. 06704_ Adv. Assault Cannon destroyed. 06707_ Xenon Bombardment Thruster destroyed. 06714_ Destroyed Prototype Hover Unit. 06714_ Imp. Cooling System destroyed. Map ----- +----------------------------------------------------+ | | | | | | | | | | | | | | | | | | | | | | | ?????????????????????????????????????????????????? | | ?????#####???????????????????????????????????????? | | ??? ???????????????????????????????????????? | | ??? ???? ###???????????????????? ?????????? | | ?? ##?##; ##?????######??????? ?????????? | | ?? ## # #???### ##?????? #????????? | | ? ##### #?????? ##???????? | | ? #?????? ##??????? | | ? #?????? ##?????? | | #???????# #????? | | ?? #???????# #???? | | ????""" ##?????## #????# | | ????""" ####### #????# | | ????""" z #???# | | ????""" @I ##?# # | | ??"" z ## | | ??""""" #### | | ????""" ###??# | | ????""" ##????# | | ?????"" #?????# | | ?????" #?????## | | ???? #?????# | | ??? #?????# | | ??? #?????# | | ??? ##?????# | | ????? #??????# ### | | ??????? ??????## ##?# | | ?????????? ???????#### ####??# | | ???????????? ???????????# ####### | | ??????????????????? ?????????????# | | ?????????????????????????????????????????# | | ?????????????????????????????????????????### #### | | ???????????????????????????????????????????# ### | | ???????????????????????????????????????????# ## | | ???????????????????????????????????????????# ## | | ???????????????????????????????????????????# # | | ???????????????????????????????????????????# # | | ???????????????????????????????????????????# ## | | ???????????????????????????????????????????# #### | +----------------------------------------------------+ Best States ------------- Heat Dissipation 61 Energy Generation 33 Energy Capacity 530 Matter Stores 300 Matter Capacity 300 Sight Range 16 Terrain Scan Density 10 Additional Mass Support 9 Armor Coverage 225 Evasion (%) 55 Recoil Reduction 3 Authchip Count 3 Item Schematics ----------------- Force Field | -7/Zion | Archive Component Analysis Suite | -7/Zion | Archive Lgt. Fission Core | -7/Zion | Archive Imp. Salvage Targeting Computer | -7/Zion | Archive Med. Treads | -7/Zion | Archive Imp. Reaction Control System | -7/Zion | Archive Lrn. Tractor Beam | -7/Zion | Archive Lrn. Proton Cannon | -7/Zion | Archive Adv. Assault Cannon | -7/Zion | Archive Imp. Particle Charger | -7/Zion | Archive Force Booster | -7/Zion | Archive Powered Hammer | -7/Zion | Archive Adv. Melee Analysis Suite | -7/Zion | Archive Shock Absorption System | -7/Zion | Archive Robot Schematics ------------------ R-06 Scavenger | -7/Zion | Archive T-07 Excavator | -7/Zion | Archive G-47 Trooper | -7/Zion | Archive C-57 Dissector | -7/Zion | Archive Fabricated ------------ Nothing Alien Tech Used ----------------- None Achievements -------------- Maybe Next Time I'll Detach My Launcher \\IAMDERELICT Challenges ------------ None Game ------ Seed MissileCobblerDissipator Manual? 0 Play Time 00:34:56 Cumulative 19.1 hours Start 2025.03.04 @ 18:49:22 End 2025.03.04 @ 19:23:23 Sessions 1 Manual Loads 0 Difficulty Rogue Special Mode None Game No. 59 Rogue 59 Adventurer 0 Explorer 0 Win Type - Total 0 Types 0/0/0/0/0/0/0/0/0 Lore% 11 Gallery% 19 Achievement% 19 Wizard Run 0 Options --------- Layout 1 ASCII 0 Keyboard 0 Movement Numpad Keybinds 0 Fullscreen 2 Font 24/Smallcaps Map View 50x35 Zoom Use 0% Tactical HUD 1 Map Filters NONE Filters NONE Steam 1 RUN: f847dc20-d4e3-480a-b90a-52a2fa8ee670